bitfinex/quotes_BTCUSD_20240815
["timestamp","ask_amount","ask_price","bid_price","bid_amount"]
[1723705180689,0.777122,58176.0,58175.0,0.0009031]
[1723705181963,0.763122,58176.0,58175.0,0.0009031]
[1723705182392,0.777122,58176.0,58175.0,0.0009031]
[1723705182610,0.763122,58176.0,58175.0,0.0009031]
[1723705183695,0.601622,58176.0,58175.0,0.0009031]
[1723705184094,0.615622,58176.0,58175.0,0.0009031]
[1723705184233,0.629622,58176.0,58175.0,0.0009031]
[1723705185287,0.615622,58176.0,58175.0,0.0009031]
[1723705185696,0.629622,58176.0,58175.0,0.0009031]
[1723705192387,0.388973,58176.0,58175.0,0.0009031]
[1723705192618,0.629622,58176.0,58175.0,0.0009031]
[1723705197318,0.388973,58176.0,58175.0,0.0009031]
[1723705198252,0.028,58176.0,58175.0,0.0009031]
[1723705198510,0.028,58176.0,58175.0,0.0665031]
[1723705199159,0.148324,58176.0,58175.0,0.0665031]
[1723705199587,0.134324,58176.0,58175.0,0.0665031]
[1723705199837,0.128324,58176.0,58175.0,0.0665031]
[1723705200051,0.134324,58176.0,58175.0,0.0665031]
[1723705200263,0.615622,58176.0,58175.0,0.0009031]
[1723705200460,0.465073,58176.0,58175.0,0.0009031]
[1723705200628,0.451073,58176.0,58175.0,0.0009031]
[1723705201030,0.699722,58176.0,58175.0,0.0009031]
[1723705201431,0.451073,58176.0,58175.0,0.0009031]
[1723705201842,0.360973,58176.0,58175.0,0.0009031]
[1723705202037,0.601622,58176.0,58175.0,0.0009031]
[1723705202263,0.371973,58176.0,58175.0,0.0009031]
[1723705202436,0.360973,58176.0,58175.0,0.0009031]
[1723705202890,0.615622,58176.0,58175.0,0.0009031]
[1723705203098,0.374973,58176.0,58175.0,0.0009031]
[1723705203506,0.399973,58176.0,58175.0,0.0009031]
[1723705203712,0.640622,58176.0,58175.0,0.0009031]
[1723705203920,0.640622,58176.0,58175.0,1e-08]
[1723705203921,1.95532554,58176.0,58175.0,1e-08]
[1723705204140,2.4157191,58176.0,58175.0,1e-08]
[1723705204349,2.4157191,58176.0,58173.0,0.000822]
[1723705204350,0.984799,58174.0,58173.0,0.000822]
[1723705204566,2.56697576,58174.0,58173.0,0.000822]
[1723705204756,2.7033041,58174.0,58173.0,0.000822]
[1723705205001,2.87485864,58174.0,58173.0,0.000822]
[1723705205920,3.03135864,58174.0,58173.0,0.000822]
[1723705206362,3.01735864,58174.0,58173.0,0.000822]
[1723705206833,2.90905864,58174.0,58173.0,0.000822]
[1723705207074,1.32242351,58174.0,58173.0,0.000822]
[1723705207349,1.17035354,58174.0,58173.0,0.000822]
[1723705207580,1.24679468,58174.0,58173.0,0.000822]
[1723705207804,1.26079468,58174.0,58173.0,0.000822]
[1723705208028,1.18435354,58174.0,58173.0,0.000822]
[1723705208260,1.26079468,58174.0,58173.0,0.000822]
[1723705208938,1.26378939,58174.0,58173.0,0.000822]
[1723705209165,1.67049016,58174.0,58173.0,0.000822]
[1723705209640,1.67058933,58174.0,58173.0,0.000822]
[1723705209862,1.85217891,58174.0,58173.0,0.000822]
[1723705210093,1.75020382,58174.0,58173.0,0.000822]
[1723705210309,1.57864928,58174.0,58173.0,0.000822]
[1723705211014,1.70611815,58174.0,58173.0,0.000822]
[1723705211258,1.57864928,58174.0,58173.0,0.000822]
[1723705212167,1.70627702,58174.0,58173.0,0.000822]
[1723705212652,1.57864928,58174.0,58173.0,0.000822]
[1723705212872,1.70627718,58174.0,58173.0,0.000822]
[1723705213098,1.57864928,58174.0,58173.0,0.000822]
[1723705214770,0.4122607,58174.0,58173.0,0.000822]
[1723705214993,0.89816159,58174.0,58173.0,0.000822]
[1723705215216,1.01090799,58174.0,58173.0,0.000822]
[1723705215422,0.77025099,58174.0,58173.0,0.000822]
[1723705215648,0.51160094,58174.0,58173.0,0.000822]
[1723705215888,0.51160094,58174.0,58173.0,0.063922]
[1723705216117,0.51559399,58174.0,58173.0,0.063922]
[1723705216341,0.148328,58174.0,58173.0,0.063922]
[1723705216553,0.51551411,58174.0,58173.0,0.063922]
[1723705216773,0.39518611,58174.0,58173.0,0.063922]
[1723705217231,0.120328,58174.0,58173.0,0.063922]
[1723705217482,0.50151359,58174.0,58173.0,0.063922]
[1723705217730,0.61584854,58174.0,58173.0,0.063922]
[1723705217955,0.62784854,58174.0,58173.0,0.063922]
[1723705218191,0.61584854,58174.0,58173.0,0.063922]
[1723705218418,0.61384854,58174.0,58173.0,0.000822]
[1723705218714,1.00282759,58174.0,58173.0,0.000822]
[1723705218951,1.23348459,58174.0,58173.0,0.000822]
[1723705219192,0.64984013,58174.0,58163.0,0.000822]
[1723705219439,0.05118518,58166.0,58164.0,0.31255454]
[1723705219674,0.05118518,58169.0,58168.0,0.0776]
[1723705219903,0.05118518,58170.0,58168.0,0.318282]
[1723705220135,0.05118518,58171.0,58169.0,0.120339]
[1723705220371,0.05118518,58171.0,58170.0,0.120336]
[1723705220614,0.05118518,58171.0,58169.0,0.120338]
[1723705220871,0.05118518,58171.0,58170.0,0.67316354]
[1723705221078,0.05118518,58171.0,58170.0,0.91383654]
[1723705221282,0.05118518,58172.0,58171.0,0.680572]
[1723705221499,0.05118518,58172.0,58171.0,0.85212654]
[1723705221718,0.05118518,58172.0,58171.0,0.91412654]
[1723705222363,0.05118518,58173.0,58172.0,0.680962]
[1723705222592,0.15356495,58183.0,58180.0,0.1413]
[1723705222803,0.10238771,58182.0,58180.0,0.1413]
[1723705223010,0.10238771,58183.0,58182.0,0.120312]
[1723705223255,0.05118698,58183.0,58182.0,0.240624]
[1723705223486,0.05118698,58184.0,58183.0,0.12031]
[1723705223710,0.05118698,58185.0,58182.0,0.120311]
[1723705223925,0.05118698,58183.0,58181.0,0.240628]
[1723705224134,0.05118698,58184.0,58182.0,0.120312]
[1723705224350,0.05118698,58184.0,58180.0,0.43316854]
[1723705224568,0.05118698,58184.0,58181.0,0.120312]
[1723705224768,0.05118698,58184.0,58181.0,0.240627]
[1723705225002,0.05118698,58185.0,58183.0,0.12031]
[1723705225618,0.012,58184.0,58180.0,0.1413]
[1723705225814,0.012,58184.0,58180.0,0.261615]
[1723705226021,0.120314,58181.0,58180.0,0.1413]
[1723705226459,0.120325,58176.0,58173.0,0.1359]
[1723705226668,0.240636,58179.0,58173.0,0.1359]
[1723705226892,0.120326,58176.0,58173.0,0.1359]
[1723705227289,0.120323,58177.0,58173.0,0.1359]
[1723705227536,0.115323,58177.0,58173.0,0.25623]
[1723705227944,0.115323,58177.0,58173.0,0.1359]
[1723705228371,0.12032,58178.0,58173.0,0.1359]
[1723705228574,0.004,58177.0,58174.0,0.120327]
[1723705228789,0.008,58177.0,58174.0,0.120327]
[1723705228987,0.004,58177.0,58174.0,0.120327]
[1723705229183,0.12032,58178.0,58174.0,0.120327]
[1723705229386,0.240633,58180.0,58173.0,0.1359]
[1723705229387,0.128322,58177.0,58173.0,0.25623]
[1723705229596,0.120322,58177.0,58173.0,0.25623]
[1723705230006,0.240633,58180.0,58174.0,0.120328]
[1723705230204,0.120321,58178.0,58174.0,0.120328]
[1723705230639,0.0511495,58182.0,58175.0,0.17155454]
[1723705230880,0.120314,58181.0,58177.0,0.120321]
[1723705231086,0.4120825,58183.0,58177.0,0.120321]
[1723705231316,0.120312,58182.0,58177.0,0.120321]
[1723705231726,0.009,58178.0,58177.0,0.120321]
[1723705232158,0.120312,58182.0,58177.0,0.120321]
[1723705232359,0.29175474,58183.0,58177.0,0.240644]
[1723705232360,0.05113374,58183.0,58177.0,0.240644]
[1723705232589,0.026,58182.0,58181.0,0.67957]
[1723705232797,0.026,58182.0,58181.0,0.74557]
[1723705233040,0.013,58182.0,58181.0,0.74557]
[1723705233243,0.013,58182.0,58181.0,0.504942]
[1723705233446,0.013,58182.0,58181.0,0.264314]
[1723705233875,0.17143574,58187.0,58183.0,0.120309]
[1723705234080,0.120302,58187.0,58183.0,0.120309]
[1723705234713,0.120299,58188.0,58184.0,0.120307]
[1723705235366,0.120301,58187.0,58182.0,0.360933]
[1723705235528,0.132301,58187.0,58183.0,0.120308]
[1723705235739,0.144301,58187.0,58183.0,0.120308]
[1723705235903,0.132301,58187.0,58183.0,0.120308]
[1723705236743,0.132301,58187.0,58184.0,0.120306]
[1723705236744,0.012,58187.0,58184.0,0.120306]
[1723705237129,0.120301,58187.0,58183.0,0.120309]
[1723705237340,0.132301,58187.0,58183.0,0.120309]
[1723705238008,0.024,58187.0,58184.0,0.198107]
[1723705238211,0.024,58187.0,58186.0,0.679317]
[1723705238212,0.012,58187.0,58186.0,0.679317]
[1723705238421,0.000822,58190.0,58186.0,0.679317]
[1723705238422,0.000822,58190.0,58189.0,0.360892]
[1723705238630,0.000822,58190.0,58189.0,0.120297]
[1723705238837,0.000822,58190.0,58187.0,0.120299]
[1723705239253,0.011,58187.0,58185.0,0.186205]
[1723705239661,0.011,58187.0,58186.0,0.120303]
[1723705240702,0.014822,58190.0,58186.0,0.120303]
[1723705240912,0.000822,58190.0,58187.0,0.120301]
[1723705241113,0.006822,58190.0,58187.0,0.120301]
[1723705241325,0.000822,58190.0,58187.0,0.120301]
[1723705241736,0.121117,58190.0,58185.0,0.240611]
[1723705241934,0.0793,58185.0,58179.0,0.0762]
[1723705242141,0.240619,58184.0,58179.0,0.196517]
[1723705242351,0.022822,58190.0,58180.0,0.17155454]
[1723705242548,0.022822,58190.0,58187.0,0.1203]
[1723705242773,0.022822,58190.0,58182.0,0.0616]
[1723705242774,0.143117,58190.0,58188.0,0.0762]
[1723705243177,0.022822,58190.0,58188.0,0.0762]
[1723705243487,0.011822,58190.0,58188.0,0.0762]
[1723705243951,0.120297,58189.0,58185.0,0.200104]
[1723705244152,0.022822,58190.0,58185.0,0.0798]
[1723705244356,0.120299,58188.0,58185.0,0.0798]
[1723705244551,0.120299,58188.0,58184.0,0.120307]
[1723705244552,0.009822,58190.0,58184.0,0.0759]
[1723705244751,0.1203,58188.0,58184.0,0.0759]
[1723705245011,0.120302,58187.0,58184.0,0.0759]
[1723705245196,0.009822,58190.0,58180.0,0.17155454]
[1723705245197,0.010822,58190.0,58180.0,0.17155454]
[1723705245368,0.120306,58185.0,58181.0,0.220313]
[1723705245541,0.301699,58188.0,58181.0,0.1]
[1723705245749,0.120308,58184.0,58181.0,0.1]
[1723705245962,0.120312,58182.0,58181.0,0.1]
[1723705246159,0.120314,58181.0,58178.0,0.0827]
[1723705246558,0.240604,58187.0,58179.0,0.25733181]
[1723705246767,0.240604,58187.0,58180.0,0.360945]
[1723705246972,0.120306,58185.0,58181.0,0.120314]
[1723705247187,0.128306,58185.0,58181.0,0.120314]
[1723705247396,0.0899,58185.0,58178.0,0.0827]
[1723705247613,0.0819,58185.0,58178.0,0.0827]
[1723705247825,0.120319,58179.0,58174.0,0.263628]
[1723705248037,0.120319,58179.0,58175.0,0.1]
[1723705248482,0.12032,58178.0,58175.0,0.1]
[1723705248687,0.120311,58183.0,58178.0,0.120319]
[1723705248937,0.120314,58181.0,58177.0,0.0768]
[1723705249141,0.120322,58178.0,58174.0,0.1445042]
[1723705249586,0.120322,58177.0,58174.0,0.1445042]
[1723705249833,0.120322,58177.0,58175.0,0.001]
[1723705249834,0.976822,58176.0,58175.0,0.001]
[1723705250037,0.976822,58176.0,58163.0,0.000822]
[1723705250038,0.842443,58164.0,58163.0,0.000822]
[1723705250276,0.980243,58164.0,58163.0,0.000822]
[1723705251330,0.994243,58164.0,58163.0,0.000822]
[1723705251964,1.008243,58164.0,58163.0,0.000822]
[1723705254789,0.767545,58164.0,58163.0,0.000822]
[1723705256850,1.08473639,58164.0,58163.0,0.000822]
[1723705257073,1.3895614,58164.0,58163.0,0.000822]
[1723705257302,1.08469993,58164.0,58163.0,0.000822]
[1723705257529,0.84400193,58164.0,58163.0,0.000822]
[1723705257759,1.08469993,58164.0,58163.0,0.000822]
[1723705258274,1.08470052,58164.0,58163.0,0.000822]
[1723705258695,0.706745,58164.0,58163.0,0.000822]
[1723705259144,0.629745,58164.0,58163.0,0.000822]
[1723705262188,1.746943,58164.0,58163.0,0.000822]
[1723705263271,1.79786969,58164.0,58163.0,0.000822]
[1723705264578,1.746943,58164.0,58163.0,0.000822]
[1723705265033,0.36109,58157.0,58156.0,0.000822]
[1723705265268,0.601817,58157.0,58156.0,0.000822]
[1723705265502,0.921544,58157.0,58156.0,0.000822]
[1723705265757,1.224871,58157.0,58156.0,0.000822]
[1723705265980,1.994871,58157.0,58156.0,0.000822]
[1723705266222,2.07122938,58157.0,58156.0,0.000822]
[1723705266473,2.17442554,58157.0,58156.0,0.000822]
[1723705266736,2.25073735,58157.0,58156.0,0.000822]
[1723705266947,0.91799,58154.0,58153.0,0.000822]
[1723705267162,1.74886332,58154.0,58153.0,0.000822]
[1723705267386,2.3991124,58154.0,58153.0,0.000822]
[1723705267617,0.985674,58148.0,58145.0,0.009031]
[1723705267827,2.18883638,58148.0,58145.0,0.009031]
[1723705268049,2.21425647,58148.0,58145.0,0.009031]
[1723705268228,2.38581101,58148.0,58145.0,0.009031]
[1723705268471,2.36035741,58148.0,58145.0,0.009031]
[1723705268888,1.62035741,58148.0,58145.0,0.009031]
[1723705269094,2.42435741,58148.0,58145.0,0.009031]
[1723705269510,1.58354708,58148.0,58145.0,0.009031]
[1723705269722,1.60788275,58148.0,58145.0,0.009031]
[1723705270364,1.42232821,58148.0,58145.0,0.009031]
[1723705271243,1.40832821,58148.0,58145.0,0.009031]
[1723705271504,1.42232821,58148.0,58145.0,0.009031]
[1723705271695,1.43632821,58148.0,58145.0,0.009031]
[1723705274109,2.09932821,58148.0,58145.0,0.009031]
[1723705274320,2.27088275,58148.0,58145.0,0.009031]
[1723705275421,2.25688275,58148.0,58145.0,0.009031]
[1723705275625,1.223478,58146.0,58145.0,0.00689758]
[1723705275895,2.16503254,58146.0,58145.0,0.00689758]
[1723705276113,2.33658708,58146.0,58145.0,0.00689758]
[1723705276329,2.35958708,58146.0,58145.0,0.00689758]
[1723705276963,0.19589021,58148.0,58135.0,0.32659127]
[1723705276964,0.014,58148.0,58135.0,0.32659127]
[1723705277175,1.21071439,58150.0,58138.0,0.120402]
[1723705277176,0.014,58146.0,58138.0,0.120402]
[1723705277404,0.014,58146.0,58140.0,0.1434]
[1723705277610,0.014,58146.0,58141.0,0.0807]
[1723705277611,0.240782,58144.0,58141.0,0.0807]
[1723705277823,0.120393,58143.0,58141.0,0.0807]
[1723705278038,0.240774,58146.0,58143.0,0.1439]
[1723705278039,0.014,58146.0,58143.0,0.1439]
[1723705278238,0.014,58146.0,58145.0,0.1439]
[1723705278471,0.240752,58151.0,58145.0,0.1439]
[1723705278472,0.120385,58147.0,58145.0,0.1439]
[1723705278647,0.134386,58146.0,58145.0,0.1439]
[1723705278883,0.120386,58146.0,58145.0,0.1439]
[1723705279108,0.240756,58150.0,58145.0,0.1439]
[1723705279334,0.014,58146.0,58145.0,0.0648]
[1723705279833,0.0029936,58156.0,58155.0,0.120367]
[1723705280099,0.51466362,58170.0,58157.0,0.0648]
[1723705280331,0.120356,58161.0,58158.0,0.0805]
[1723705280582,0.120354,58162.0,58158.0,0.120361]
[1723705280813,0.240693,58166.0,58158.0,0.0788]
[1723705281047,0.120354,58162.0,58158.0,0.0788]
[1723705281282,0.240689,58167.0,58158.0,0.0788]
[1723705281510,0.120348,58165.0,58161.0,0.0788]
[1723705281755,0.120349,58164.0,58162.0,0.0605]
[1723705282247,0.121153,58173.0,58168.0,0.12034]
[1723705282426,0.121153,58173.0,58170.0,0.0831]
[1723705282427,0.000822,58173.0,58170.0,0.0831]
[1723705282887,0.000822,58173.0,58172.0,0.120332]
[1723705283306,0.000822,58173.0,58170.0,0.323772]
[1723705283307,0.000822,58173.0,58170.0,0.203435]
[1723705283515,0.014822,58173.0,58172.0,0.120332]
[1723705283938,0.000822,58173.0,58172.0,0.120332]
[1723705284151,0.000822,58173.0,58170.0,0.0831]
[1723705284152,0.121153,58173.0,58170.0,0.0831]
[1723705284368,0.135153,58173.0,58170.0,0.0831]
[1723705284584,0.014822,58173.0,58170.0,0.0831]
[1723705285228,0.014822,58173.0,58166.0,0.196644]
[1723705285229,0.120335,58171.0,58166.0,0.196644]
[1723705285451,0.120337,58170.0,58166.0,0.196644]
[1723705285898,0.017822,58173.0,58166.0,0.0763]
[1723705286114,0.120333,58172.0,58167.0,0.120342]
[1723705286785,0.009,58170.0,58167.0,0.120342]
[1723705287000,0.009,58170.0,58169.0,0.120339]
[1723705287214,0.120333,58172.0,58168.0,0.12034]
[1723705287449,0.120333,58172.0,58166.0,0.196643]
[1723705287655,0.143333,58172.0,58166.0,0.196643]
[1723705287863,0.023,58172.0,58170.0,0.0831]
[1723705288089,0.023,58172.0,58171.0,0.1477]
[1723705288090,0.011,58172.0,58171.0,0.1477]
[1723705288308,0.011,58172.0,58171.0,1.16159554]
[1723705288534,0.011,58172.0,58171.0,1.26159554]
[1723705289639,0.000822,58173.0,58171.0,1.26159554]
[1723705289640,0.000822,58173.0,58172.0,0.984027]
[1723705289854,0.000822,58173.0,58172.0,1.49298154]
[1723705290102,0.000822,58173.0,58172.0,1.73364654]
[1723705291041,0.001822,58173.0,58172.0,1.73564654]
[1723705291269,0.000822,58173.0,58172.0,1.73364654]
[1723705291496,0.001822,58173.0,58172.0,1.73364654]
[1723705291721,0.002822,58173.0,58172.0,1.73564654]
[1723705292914,0.001822,58173.0,58172.0,1.73564654]
[1723705293144,0.002822,58173.0,58172.0,1.73564654]
[1723705293610,0.000822,58173.0,58172.0,1.73364654]
[1723705294056,0.000822,58173.0,58172.0,1.49498154]
[1723705294057,0.002822,58173.0,58172.0,1.49498154]
[1723705294296,0.001822,58173.0,58172.0,1.49298154]
[1723705294573,0.001822,58173.0,58172.0,1.25558154]
[1723705294780,0.002822,58173.0,58172.0,1.01691654]
[1723705294990,0.002822,58173.0,58172.0,1.01491654]
[1723705295659,0.002822,58173.0,58172.0,0.301532]
[1723705295868,0.001822,58173.0,58172.0,0.542197]
[1723705296071,0.001822,58173.0,58172.0,0.301532]
[1723705296309,0.002822,58173.0,58172.0,0.220332]
[1723705296520,0.003822,58173.0,58172.0,0.002]
[1723705296733,0.000822,58173.0,58172.0,0.120332]
[1723705296941,0.000822,58173.0,58172.0,0.360997]
[1723705297160,0.000822,58173.0,58172.0,0.122332]
[1723705297370,0.000822,58173.0,58169.0,0.240677]
[1723705297371,0.000822,58173.0,58170.0,0.120335]
[1723705297581,0.000822,58173.0,58167.0,0.240684]
[1723705297794,0.000822,58173.0,58172.0,0.120332]
[1723705298898,0.000822,58173.0,58172.0,0.77321654]
[1723705299173,0.000822,58173.0,58172.0,0.90961654]
[1723705299393,0.000822,58173.0,58172.0,1.38768154]
[1723705299597,0.000822,58173.0,58172.0,1.48768154]
[1723705300633,0.001822,58173.0,58172.0,1.48968154]
[1723705300838,0.001822,58173.0,58172.0,1.48768154]
[1723705301046,0.001822,58173.0,58172.0,1.49783545]
[1723705301259,0.002822,58173.0,58172.0,1.49983545]
[1723705301715,0.002822,58173.0,58172.0,1.74050045]
[1723705301926,0.002822,58173.0,58172.0,1.76350045]
[1723705302132,0.001822,58173.0,58172.0,1.76350045]
[1723705302747,0.000822,58173.0,58172.0,1.76150045]
[1723705302962,0.001822,58173.0,58172.0,1.76350045]
[1723705303387,0.002822,58173.0,58172.0,1.76350045]
[1723705303810,0.002822,58173.0,58172.0,1.76150045]
[1723705304019,0.001822,58173.0,58172.0,1.76150045]
[1723705304259,0.002822,58173.0,58172.0,1.76350045]
[1723705304480,0.002822,58173.0,58172.0,1.49983545]
[1723705304696,0.002822,58173.0,58172.0,1.26243545]
[1723705304906,0.002822,58173.0,58172.0,1.01161654]
[1723705305116,0.002822,58173.0,58172.0,1.00961654]
[1723705305117,0.000822,58173.0,58172.0,1.00961654]
[1723705305537,0.001822,58173.0,58172.0,1.00961654]
[1723705305752,0.001822,58173.0,58172.0,1.25028154]
[1723705305971,0.000822,58173.0,58172.0,1.25028154]
[1723705306607,0.001822,58173.0,58172.0,1.25228154]
[1723705306861,0.000822,58173.0,58172.0,1.48768154]
[1723705307298,0.065722,58173.0,58172.0,0.002]
[1723705307506,0.065722,58173.0,58163.0,0.000822]
[1723705307507,0.23727654,58173.0,58163.0,0.000822]
[1723705307714,0.361047,58164.0,58163.0,0.000822]
[1723705307928,0.601745,58164.0,58163.0,0.000822]
[1723705308162,0.680245,58164.0,58163.0,0.000822]
[1723705309663,0.205849,58164.0,58163.0,0.000822]
[1723705309912,0.0855,58164.0,58163.0,0.000822]
[1723705310176,0.205849,58164.0,58163.0,0.000822]
[1723705310397,0.212849,58164.0,58163.0,0.000822]
[1723705311623,0.014,58164.0,58163.0,0.000822]
[1723705312037,0.134349,58164.0,58163.0,0.000822]
[1723705313639,0.615745,58164.0,58163.0,0.000822]
[1723705318475,0.375047,58164.0,58163.0,0.000822]
[1723705319100,0.615745,58164.0,58163.0,0.000822]
[1723705319532,0.375047,58164.0,58163.0,0.000822]
[1723705319879,0.134349,58164.0,58163.0,0.000822]
[1723705321036,0.014,58164.0,58163.0,0.000822]
[1723705321238,0.134349,58164.0,58163.0,0.000822]
[1723705323688,0.014,58164.0,58163.0,0.121173]
[1723705323897,0.014,58164.0,58163.0,0.602577]
[1723705324055,0.014,58164.0,58163.0,0.000822]
[1723705324487,0.014,58164.0,58163.0,0.121173]
[1723705326076,0.014,58164.0,58163.0,0.361875]
[1723705328260,0.014,58164.0,58163.0,0.602577]
[1723705328470,0.014,58164.0,58163.0,0.680877]
[1723705329966,0.014,58164.0,58163.0,0.440175]
[1723705330623,0.014,58164.0,58163.0,0.000822]
[1723705331049,0.014,58164.0,58163.0,0.121173]
[1723705331264,0.014,58164.0,58163.0,0.361875]
[1723705333198,0.014,58164.0,58163.0,0.121173]
[1723705334406,0.014,58164.0,58163.0,0.361875]
[1723705335031,0.01490421,58164.0,58163.0,0.361875]
[1723705335704,0.01490421,58164.0,58163.0,0.000822]
[1723705335933,0.01490421,58164.0,58163.0,0.121173]
[1723705336891,0.37595121,58164.0,58163.0,0.000822]
[1723705337103,0.13525321,58164.0,58163.0,0.000822]
[1723705338914,0.37595121,58164.0,58163.0,0.000822]
[1723705340392,0.13525321,58164.0,58163.0,0.000822]
[1723705341653,1.03273548,58164.0,58163.0,0.000822]
[1723705341860,0.23214087,58164.0,58145.0,0.000822]
[1723705342071,0.120362,58158.0,58154.0,0.120369]
[1723705342281,0.240715,58160.0,58152.0,0.200973]
[1723705342282,0.120364,58157.0,58152.0,0.200973]
[1723705342690,0.120366,58156.0,58152.0,0.0806]
[1723705342895,0.120366,58156.0,58152.0,0.200974]
[1723705343282,0.120364,58157.0,58152.0,0.200973]
[1723705343487,0.120364,58157.0,58153.0,0.120372]
[1723705343624,0.125364,58157.0,58153.0,0.120372]
[1723705343824,0.120366,58156.0,58151.0,0.120375]
[1723705344267,0.124366,58156.0,58151.0,0.120375]
[1723705344513,0.120368,58155.0,58150.0,0.120377]
[1723705344718,0.12037,58154.0,58149.0,0.0768]
[1723705344909,0.120368,58155.0,58150.0,0.120377]
[1723705345332,0.120368,58155.0,58151.0,0.120375]
[1723705345505,0.240736,58155.0,58147.0,0.0792]
[1723705345710,0.240746,58153.0,58147.0,0.1]
[1723705345942,0.120375,58152.0,58148.0,0.120382]
[1723705347661,0.120373,58153.0,58149.0,0.120379]
[1723705347867,0.120373,58153.0,58148.0,0.120381]
[1723705348089,0.120365,58157.0,58152.0,0.120372]
[1723705348500,0.240733,58156.0,58149.0,0.17155454]
[1723705348729,0.120377,58151.0,58142.0,0.240787]
[1723705348919,0.120375,58152.0,58147.0,0.120384]
[1723705349219,0.120375,58152.0,58148.0,0.120382]
[1723705350860,0.05111021,58155.0,58149.0,0.25165454]
[1723705351072,0.05111021,58155.0,58150.0,0.240754]
[1723705351286,0.05611021,58157.0,58154.0,0.120369]
[1723705351483,0.05111021,58156.0,58154.0,0.120369]
[1723705351636,0.05111021,58156.0,58152.0,0.120372]
[1723705351849,0.05111021,58156.0,58150.0,0.240754]
[1723705352052,0.07666532,58158.0,58151.0,0.120375]
[1723705352053,0.17147821,58155.0,58151.0,0.120375]
[1723705352503,0.05111021,58156.0,58152.0,0.120372]
[1723705352606,0.05111021,58155.0,58152.0,0.36112]
[1723705352830,0.05111021,58155.0,58150.0,0.240754]
[1723705353078,0.05111021,58155.0,58154.0,0.12037]
[1723705353288,0.05411021,58155.0,58154.0,0.36111]
[1723705353497,0.05111021,58155.0,58154.0,0.12037]
[1723705353710,0.07866532,58155.0,58154.0,0.12037]
[1723705354344,0.19903332,58155.0,58151.0,0.120375]
[1723705354555,0.19903332,58155.0,58147.0,0.120383]
[1723705354556,0.120377,58151.0,58147.0,0.120383]
[1723705354761,0.05125345,58152.0,58147.0,0.120383]
[1723705355012,0.17162745,58152.0,58147.0,0.120383]
[1723705355206,0.120374,58152.0,58148.0,0.120382]
[1723705355904,0.17162745,58152.0,58148.0,0.120382]
[1723705356143,0.17162845,58152.0,58147.0,0.120384]
[1723705357783,0.120377,58151.0,58145.0,0.25175799]
[1723705357999,0.120378,58150.0,58146.0,0.27155454]
[1723705358206,0.25230903,58152.0,58147.0,0.120384]
[1723705358418,0.120376,58151.0,58147.0,0.120384]
[1723705359302,0.120376,58151.0,58145.0,0.000822]
[1723705359303,0.05123403,58151.0,58145.0,0.000822]
[1723705359508,0.120386,58146.0,58145.0,0.000822]
[1723705359719,0.05123403,58150.0,58145.0,0.000822]
[1723705359934,0.0807,58152.0,58145.0,0.000822]
[1723705359935,0.120381,58149.0,58145.0,0.121209]
[1723705360224,0.17161065,58149.0,58145.0,0.000822]
[1723705360452,0.120385,58147.0,58145.0,0.000822]
[1723705362551,0.124385,58147.0,58145.0,0.000822]
[1723705363714,0.128385,58147.0,58145.0,0.000822]
[1723705365456,0.008,58147.0,58145.0,0.000822]
[1723705365697,0.008,58147.0,58146.0,0.120386]
[1723705365915,0.008,58147.0,58145.0,0.000822]
[1723705366150,0.11938,58149.0,58145.0,0.121209]
[1723705366383,0.006,58147.0,58145.0,0.121209]
[1723705366630,0.120386,58146.0,58145.0,0.000822]
[1723705366882,0.006,58147.0,58145.0,0.000822]
[1723705367055,0.17161565,58146.0,58145.0,0.000822]
[1723705367740,0.05122965,58146.0,58145.0,0.000822]
[1723705367947,0.120386,58146.0,58145.0,0.000822]
[1723705368171,0.05122965,58147.0,58145.0,0.000822]
[1723705368378,0.17161265,58148.0,58145.0,0.000822]
[1723705368580,0.126384,58147.0,58145.0,0.000822]
[1723705368963,0.132384,58147.0,58145.0,0.000822]
[1723705369113,0.120384,58147.0,58145.0,0.000822]
[1723705369328,0.129384,58147.0,58145.0,0.000822]
[1723705369529,0.129384,58147.0,58145.0,0.001822]
[1723705369819,0.129384,58147.0,58145.0,0.000822]
[1723705370244,0.138384,58147.0,58145.0,0.001822]
[1723705370421,0.129384,58147.0,58145.0,0.000822]
[1723705370923,0.137384,58147.0,58145.0,0.001822]
[1723705371611,0.128384,58147.0,58145.0,0.001822]
[1723705371822,0.136384,58147.0,58145.0,0.001822]
[1723705372029,0.016,58147.0,58146.0,0.91988654]
[1723705372815,0.008,58147.0,58146.0,0.91988654]
[1723705373250,0.05116523,58155.0,58153.0,0.076]
[1723705373509,0.05116523,58156.0,58155.0,0.425402]
[1723705373689,0.05116523,58157.0,58156.0,0.120365]
[1723705374140,0.05116523,58157.0,58156.0,0.361096]
[1723705374579,0.05116523,58157.0,58156.0,0.120365]
[1723705375260,0.05116523,58157.0,58154.0,0.120369]
[1723705375699,0.0809,58155.0,58152.0,0.120372]
[1723705375702,0.120376,58151.0,58145.0,0.000822]
[1723705375922,0.120376,58151.0,58147.0,0.120383]
[1723705376154,0.120378,58150.0,58146.0,0.120386]
[1723705376376,0.120378,58150.0,58145.0,0.000822]
[1723705376377,0.05121177,58150.0,58145.0,0.000822]
[1723705376604,0.05121177,58150.0,58148.0,0.120381]
[1723705376826,0.05121177,58150.0,58145.0,0.000822]
[1723705377036,0.17159477,58148.0,58145.0,0.000822]
[1723705377248,0.05121177,58148.0,58145.0,0.000822]
[1723705377459,0.05121177,58148.0,58147.0,0.001]
[1723705377666,0.13261538,58149.0,58147.0,0.001]
[1723705377874,0.13261538,58149.0,58145.0,0.000822]